bitfinex/quotes_ETHUSD_20251215
["timestamp","ask_amount","ask_price","bid_price","bid_amount"]
[1765757170435,0.001,3070.5,3070.4,1.04077529]
[1765757170614,0.001,3070.5,3070.4,5.27517992]
[1765757176359,0.001,3070.5,3070.4,5.68068392]
[1765757176522,0.001,3070.5,3070.4,6.83744368]
[1765757176707,0.001,3070.5,3070.4,15.75393113]
[1765757177041,0.001,3071.0,3070.5,0.98597929]
[1765757177210,0.001,3071.0,3070.9,0.865804]
[1765757177411,0.001,3071.0,3070.9,1.42436774]
[1765757177743,0.001,3071.0,3070.9,11.94039689]
[1765757178045,0.001,3071.0,3070.9,13.71824049]
[1765757179209,0.001,3071.0,3070.9,9.42024725]
[1765757179410,0.001,3071.0,3070.9,0.58047529]
[1765757179648,0.001,3071.0,3070.9,1.56677529]
[1765757179849,0.001,3071.0,3070.9,1.10647529]
[1765757180355,0.001,3071.0,3070.9,4.82314964]
[1765757180522,0.001,3071.0,3070.9,5.26121738]
[1765757180731,0.001,3071.0,3070.9,6.53192446]
[1765757181036,0.001,3071.0,3070.9,6.08042446]
[1765757181268,0.001,3071.0,3070.9,6.53192446]
[1765757181452,0.001,3071.0,3070.9,4.82314964]
[1765757181653,0.001,3071.0,3070.9,5.27464964]
[1765757181956,0.001,3071.0,3070.9,5.68015364]
[1765757182414,3.69252586,3071.8,3071.0,0.58047529]
[1765757182749,6.51091549,3071.8,3071.0,0.58047529]
[1765757182936,7.18257454,3071.8,3071.1,0.526]
[1765757183134,0.00977501,3071.7,3071.1,0.526]
[1765757183450,0.4998,3071.2,3071.1,0.526]
[1765757184549,0.4851,3071.5,3071.1,0.526]
[1765757185041,0.4851,3071.5,3071.1,3.78214408]
[1765757185635,0.4851,3071.5,3071.1,0.526]
[1765757186316,3.25545029,3071.8,3071.1,3.78212045]
[1765757186520,6.96197476,3071.8,3071.1,0.526]
[1765757186731,0.451,3071.7,3071.1,0.526]
[1765757187547,0.451,3071.7,3071.0,0.58047529]
[1765757187718,0.46077501,3071.7,3071.2,0.526]
[1765757188121,0.4611,3071.3,3071.2,0.526]
[1765757188520,0.9121,3071.3,3071.2,0.526]
[1765757188849,0.4611,3071.3,3071.2,0.526]
[1765757189049,0.4611,3071.3,3071.0,3.25626163]
[1765757189050,4.16813376,3071.3,3070.9,0.002]
[1765757189230,0.1918,3071.1,3070.9,0.002]
[1765757190648,0.4584,3071.0,3070.9,0.002]
[1765757191151,0.9088,3071.0,3070.9,0.002]
[1765757194756,0.001,3071.8,3071.0,0.405504]
[1765757195057,0.001,3071.8,3070.9,2.90419366]
[1765757195255,0.4996,3071.0,3070.9,0.002]
[1765757195619,0.95,3071.0,3070.9,0.002]
[1765757196637,4.20626831,3071.0,3070.9,0.002]
[1765757197464,0.95,3071.0,3070.9,0.002]
[1765757197640,4.20626831,3071.0,3070.9,0.002]
[1765757198041,0.95,3071.0,3070.9,0.002]
[1765757198355,4.20626831,3071.0,3070.9,0.002]
[1765757198779,5.53297826,3071.0,3070.9,0.002]
[1765757199327,5.93848226,3071.0,3070.9,0.002]
[1765757199571,5.93848226,3071.0,3069.6,0.002]
[1765757199572,0.98597929,3070.9,3069.6,0.002]
[1765757199728,0.1946,3069.7,3069.6,0.002]
[1765757199928,0.3757,3069.7,3069.6,0.002]
[1765757200161,0.8261,3069.7,3069.6,0.002]
[1765757200887,4.08374732,3069.7,3069.6,0.002]
[1765757201396,4.81885199,3069.7,3069.6,0.002]
[1765757202008,5.39932728,3069.7,3069.6,0.002]
[1765757202301,5.92532728,3069.7,3069.6,0.002]
[1765757210974,5.19022261,3069.7,3069.6,0.002]
[1765757217509,3.25734765,3070.0,3069.6,0.4745]
[1765757217695,3.25720628,3070.2,3069.8,0.4725]
[1765757217891,3.25682253,3070.5,3070.1,0.6298]
[1765757218213,0.00977501,3070.4,3069.6,0.002]
[1765757218416,0.00977501,3070.4,3069.6,0.479]
[1765757218720,3.26654053,3070.6,3070.3,0.6298]
[1765757218721,0.00977501,3070.6,3070.3,0.6298]
[1765757218880,3.25670397,3070.6,3070.5,0.4725]
[1765757219509,3.2662662,3070.8,3070.3,0.1573]
[1765757219510,6.51317288,3070.7,3070.3,0.1573]
[1765757219714,0.00977501,3070.6,3070.3,0.1573]
[1765757221023,3.25627592,3071.0,3070.5,0.4725]
[1765757221321,0.1918,3070.9,3070.3,0.1573]
[1765757221620,6.51296078,3070.8,3070.3,0.1573]
[1765757222209,0.463,3070.4,3069.7,0.1573]
[1765757222617,0.00977501,3070.3,3069.7,0.1573]
[1765757222821,0.24,3069.8,3069.6,0.002]
[1765757223427,3.71844732,3069.7,3069.6,0.002]
[1765757223631,4.91302482,3069.7,3069.6,0.002]
[1765757223817,4.17024732,3069.7,3069.6,0.002]
[1765757225190,3.72064732,3069.7,3069.6,0.002]
[1765757225421,4.17244732,3069.7,3069.6,0.002]
[1765757226000,3.25764732,3069.7,3069.6,0.002]
[1765757227406,3.72064732,3069.7,3069.6,0.002]
[1765757228110,3.25764732,3069.7,3069.6,0.002]
[1765757228307,3.72064732,3069.7,3069.6,0.002]
[1765757228795,3.25764732,3069.7,3069.6,0.002]
[1765757230730,4.82494232,3069.7,3069.6,0.002]
[1765757230904,3.25764732,3069.7,3069.6,0.002]
[1765757232624,3.72064732,3069.7,3069.6,0.002]
[1765757232821,3.72064732,3069.7,3069.6,0.4745]
[1765757232822,3.25764732,3069.7,3069.6,0.4745]
[1765757233536,6.51487018,3069.9,3069.6,0.002]
[1765757233736,6.51487018,3069.9,3069.6,0.4745]
[1765757234218,6.51465798,3070.0,3069.6,0.4745]
[1765757234402,0.00977501,3069.9,3069.6,0.4745]
[1765757234804,0.00977501,3069.9,3069.6,0.002]
[1765757235616,0.00977501,3069.7,3069.6,0.002]
[1765757236432,3.26742233,3069.7,3069.6,0.002]
[1765757236637,0.00977501,3069.7,3069.6,0.9515]
[1765757236822,3.25741058,3070.0,3069.6,0.9515]
[1765757237018,3.25741058,3070.0,3069.8,0.4725]
[1765757237221,3.25741058,3070.0,3069.9,0.4725]
[1765757237740,3.25741058,3070.0,3069.6,0.002]
[1765757237919,6.51482116,3070.0,3069.6,0.002]
[1765757238326,3.25741058,3070.0,3069.6,0.479]
[1765757238532,3.25701071,3070.3,3069.9,0.4725]
[1765757238727,3.25701071,3070.3,3070.0,0.4725]
[1765757238913,6.51402142,3070.3,3070.0,0.4725]
[1765757239526,0.00977501,3070.2,3070.0,0.4725]
[1765757240234,0.00977501,3070.2,3070.1,0.4725]
[1765757241048,3.26689181,3070.2,3070.1,0.4725]
[1765757241844,3.26689181,3070.2,3069.7,0.477]
[1765757241845,6.52400861,3070.2,3069.7,0.477]
[1765757242412,0.463,3069.8,3069.6,0.002]
[1765757242616,0.463,3069.7,3069.6,0.002]
[1765757242833,0.526,3070.0,3069.6,0.002]
[1765757243033,3.25743509,3069.9,3069.6,0.9515]
[1765757243231,3.25743509,3069.9,3069.6,0.4745]
[1765757243438,6.51487018,3069.9,3069.6,0.4745]
[1765757243615,3.25743509,3069.9,3069.6,0.4745]
[1765757244131,3.25743509,3069.9,3069.8,0.4725]
[1765757244533,3.25743509,3069.9,3069.6,0.002]
[1765757244915,6.51487018,3069.9,3069.6,0.002]
[1765757245742,0.47277501,3069.7,3069.6,0.002]
[1765757246244,0.92457501,3069.7,3069.6,0.002]
[1765757247214,4.18222233,3069.7,3069.6,0.002]
[1765757247750,4.76269762,3069.7,3069.6,0.002]
[1765757249267,3.73042233,3069.7,3069.6,0.002]
[1765757249551,3.25764508,3069.8,3069.6,0.4602]
[1765757249754,3.25764508,3069.8,3069.7,0.4582]
[1765757249958,3.25764508,3069.8,3069.6,0.002]
[1765757250364,3.26742009,3069.8,3069.6,0.002]
[1765757252634,0.933,3069.7,3069.6,0.002]
[1765757252975,1.67879515,3069.7,3069.6,0.002]
[1765757253131,0.933,3069.7,3069.6,0.002]
[1765757253729,4.19064732,3069.7,3069.6,0.002]
[1765757253964,3.73654732,3069.7,3069.6,0.002]
[1765757254966,0.4541,3069.9,3069.6,0.4602]
[1765757254967,3.25750301,3069.9,3069.6,0.4602]
[1765757255132,3.25750301,3069.9,3069.8,0.4582]
[1765757256463,0.00977501,3070.4,3069.8,0.9474]
[1765757256662,3.2662554,3070.8,3070.1,0.6155]
[1765757256875,0.00977501,3070.6,3070.3,0.4582]
[1765757257374,0.00977501,3070.6,3070.5,0.4582]
[1765757258062,3.26646751,3070.6,3070.5,0.4582]
[1765757258871,3.25662314,3070.7,3070.5,0.4582]
[1765757259731,0.00977501,3070.6,3070.5,0.4582]
[1765757259937,0.00977501,3070.6,3070.2,0.4892]
[1765757260158,0.00977501,3070.4,3070.2,0.4892]
[1765757260668,3.26667964,3070.4,3070.3,0.4582]
[1765757261238,3.25690463,3070.4,3070.3,0.4582]
[1765757261439,0.00977501,3070.8,3070.3,0.4582]
[1765757261658,3.25658644,3070.7,3070.3,0.4582]
[1765757261856,3.25658644,3070.7,3070.3,0.9474]
[1765757262460,0.00977501,3070.4,3070.1,0.1573]
[1765757262650,0.23667501,3070.2,3069.7,0.1573]
[1765757262852,0.00977501,3070.0,3069.7,0.1573]
[1765757263166,0.23667501,3070.2,3069.6,0.002]
[1765757263167,0.00977501,3069.9,3069.6,0.002]
[1765757263539,0.00977501,3069.9,3069.8,0.002]
[1765757265542,3.2672101,3069.9,3069.8,0.002]
[1765757267449,0.46387501,3070.2,3069.8,0.4602]
[1765757267450,0.00977501,3070.0,3069.8,0.4602]
[1765757267770,3.26693124,3070.2,3069.8,0.4602]
[1765757267980,3.26693124,3070.2,3069.9,0.4582]
[1765757268466,3.26693124,3070.2,3070.1,0.4582]
[1765757269773,3.26693124,3070.2,3069.9,0.4892]
[1765757269774,7.45708747,3070.2,3069.8,0.002]
[1765757270073,0.48617501,3069.9,3069.8,0.002]
[1765757270678,0.94027501,3069.9,3069.8,0.002]
[1765757270974,3.7436101,3069.9,3069.8,0.002]
[1765757271971,3.25743509,3069.9,3069.8,0.002]
[1765757272359,0.00977501,3070.0,3069.8,0.002]
[1765757272555,3.2671705,3070.0,3069.8,0.002]
[1765757275893,0.00977501,3070.4,3069.9,0.4582]
[1765757276099,3.2566565,3070.7,3070.3,0.6155]
[1765757276261,3.2566565,3070.7,3070.5,0.4582]
[1765757276682,3.72586751,3070.6,3070.1,0.1573]
[1765757276889,0.00977501,3070.2,3069.8,0.002]
[1765757277272,0.00977501,3070.0,3069.8,0.002]
[1765757277759,0.4594,3069.9,3069.8,0.002]
[1765757277989,4.19083509,3069.9,3069.8,0.002]
[1765757278784,3.25743509,3069.9,3069.8,0.002]
[1765757278988,3.26713692,3070.0,3069.8,0.002]
[1765757279565,0.4594,3069.9,3069.8,0.002]
[1765757280095,3.71683509,3069.9,3069.8,0.002]
[1765757280800,4.93662091,3069.9,3069.8,0.002]
[1765757281294,3.25743509,3069.9,3069.8,0.002]
[1765757281700,0.00977501,3070.2,3069.8,0.9242]
[1765757282000,3.26630405,3070.8,3070.1,0.6261]
[1765757282001,3.26626137,3070.8,3070.1,0.6261]
[1765757282171,7.52174773,3070.8,3070.1,0.6261]
[1765757282359,7.52174773,3070.8,3069.8,0.4554]
[1765757282360,0.474,3070.7,3069.8,0.4554]
[1765757282564,0.474,3070.7,3069.9,0.42380448]
[1765757282771,0.00977501,3070.5,3069.8,0.002]
[1765757282972,0.00977501,3070.2,3069.8,3.71292141]
[1765757283171,0.00977501,3070.2,3069.8,0.4554]
[1765757283376,0.00977501,3070.2,3069.8,0.002]
[1765757283583,0.00977501,3070.2,3069.8,0.4554]
[1765757284202,3.25722289,3070.1,3069.8,0.4554]
[1765757284367,3.26694849,3070.2,3069.8,0.002]
[1765757285180,3.26694849,3070.2,3069.8,0.4554]
[1765757285589,3.26694849,3070.2,3069.8,0.002]
[1765757285590,0.4594,3069.9,3069.8,0.002]
[1765757285909,0.9334,3069.9,3069.8,0.002]
[1765757286125,4.19083509,3069.9,3069.8,0.002]
[1765757286441,4.71583509,3069.9,3069.8,0.002]
[1765757288185,5.12133909,3069.9,3069.8,0.002]
[1765757288388,5.99285172,3069.9,3069.8,0.002]
[1765757289195,6.57332701,3069.9,3069.8,0.002]
[1765757290286,6.04832701,3069.9,3069.8,0.002]
[1765757290471,6.57332701,3069.9,3069.8,0.002]
[1765757293879,6.04832701,3069.9,3069.8,0.002]
[1765757294103,4.77131038,3069.9,3069.8,0.002]
[1765757294303,3.25743509,3069.9,3069.8,0.4708]
[1765757296409,3.25743509,3069.9,3069.8,0.002]
[1765757296603,4.19083509,3069.9,3069.8,0.002]
[1765757297102,3.71683509,3069.9,3069.8,0.002]
[1765757299523,4.66904674,3069.9,3069.8,0.002]
[1765757300117,5.24952203,3069.9,3069.8,0.002]
[1765757300287,5.65502603,3069.9,3069.8,0.002]
[1765757307625,9.08302603,3069.9,3069.8,0.002]
[1765757309632,5.70602603,3069.9,3069.8,0.002]
[1765757309798,4.82231038,3069.9,3069.8,0.002]
[1765757310131,5.31031038,3069.9,3069.8,0.002]
[1765757310423,5.71581438,3069.9,3069.8,0.002]
[1765757310727,5.71581438,3069.9,3069.5,0.002]
[1765757310728,0.405504,3069.6,3069.5,0.002]
[1765757311025,5.29141734,3069.6,3069.5,0.002]
[1765757312130,8.54917079,3069.6,3069.5,0.002]
[1765757315029,5.12117079,3069.6,3069.5,0.002]
[1765757315230,3.26752846,3069.6,3069.5,0.4582]
[1765757315435,3.79252846,3069.6,3069.5,0.9103]
[1765757316144,3.26752846,3069.6,3069.5,0.9103]
[1765757316508,3.26752846,3069.6,3069.5,0.4582]
[1765757318140,3.26752846,3069.6,3069.5,0.002]
[1765757318313,3.26752846,3069.6,3069.5,0.4582]
[1765757318713,3.26752846,3069.6,3069.5,0.002]
[1765757318931,3.72382846,3069.6,3069.5,0.002]
[1765757320135,4.47545273,3069.6,3069.5,0.002]
[1765757320337,3.26752846,3069.6,3069.5,0.002]
[1765757320540,3.79252846,3069.6,3069.5,0.4582]
[1765757321947,3.79252846,3069.6,3069.5,0.9103]
[1765757324938,3.79252846,3069.6,3069.5,0.4582]
[1765757328616,0.00977501,3070.2,3069.5,0.9103]
[1765757328964,0.00977501,3070.2,3069.5,0.4541]
[1765757328965,0.00977501,3069.8,3069.5,0.4541]
[1765757329138,0.00977501,3069.8,3069.6,0.4521]
[1765757329330,0.00977501,3069.8,3069.7,0.4562]
[1765757329735,1.10447529,3070.3,3069.7,0.9083]
[1765757329933,1.10447529,3070.3,3070.2,0.6135]
[1765757329934,4.361486,3070.3,3070.2,0.6135]
[1765757330351,4.361486,3070.3,3069.8,0.4521]
[1765757330352,11.33180742,3070.3,3069.5,0.002]
[1765757330525,0.01077501,3069.6,3069.5,0.002]
[1765757330730,0.01077501,3069.6,3069.5,0.4541]
[1765757331045,0.001,3069.6,3069.5,0.9103]
[1765757332638,0.01077501,3069.6,3069.5,0.002]
[1765757332837,0.99011486,3069.6,3069.5,0.002]
[1765757333634,1.44641486,3069.6,3069.5,0.002]
[1765757333840,1.93881486,3069.6,3069.5,0.002]
[1765757334523,5.19656831,3069.6,3069.5,0.002]
[1765757334931,3.26852846,3069.6,3069.5,0.9103]
[1765757338173,3.26852846,3069.6,3069.5,0.4582]
[1765757340755,3.26852846,3069.6,3069.5,0.9337]
[1765757341469,3.26852846,3069.6,3069.5,0.4582]
[1765757344584,4.25822846,3069.6,3069.5,0.002]
[1765757344769,5.00980673,3069.6,3069.5,0.002]
[1765757345080,15.3875063,3069.6,3069.5,0.002]
[1765757345271,36.5521853,3069.6,3069.5,0.002]
[1765757345669,36.5521853,3069.6,3069.0,1e-08]
[1765757345670,3.428,3069.4,3069.0,1e-08]
[1765757345890,0.58047529,3068.8,3068.6,0.002]
[1765757346048,3.23089654,3068.7,3068.6,0.002]
[1765757346253,1.7936503,3068.7,3068.6,0.002]
[1765757346453,2.6965543,3068.7,3068.6,0.002]
[1765757346881,5.95526319,3068.7,3068.6,0.002]
[1765757347194,5.95526319,3068.7,3068.3,0.002]
[1765757347195,6.94969957,3068.5,3068.3,0.002]
[1765757347366,7.44199957,3068.5,3068.3,0.002]
[1765757347561,9.80943509,3068.5,3068.3,0.002]
[1765757347756,2.45051081,3068.5,3068.3,0.002]
[1765757347951,0.00977628,3068.5,3068.4,0.4795]
[1765757348168,0.53377628,3068.5,3068.4,0.4795]
[1765757348370,0.00977628,3068.5,3068.4,0.4795]
[1765757348586,6.52719279,3068.7,3068.4,0.955]
[1765757348797,6.52719279,3068.7,3068.4,0.002]
[1765757348798,0.00977692,3068.5,3068.4,0.002]
[1765757349093,4.41469518,3068.5,3068.4,0.002]
[1765757350396,3.92239518,3068.5,3068.4,0.002]
[1765757351106,3.25892129,3068.5,3068.4,0.4795]
[1765757351707,4.33169658,3068.5,3068.4,0.002]
[1765757351907,4.82909658,3068.5,3068.4,0.002]
[1765757352209,4.33169658,3068.5,3068.4,0.002]
[1765757352373,5.4699947,3068.5,3068.4,0.002]
[1765757353694,5.9673947,3068.5,3068.4,0.002]
[1765757354782,5.4699947,3068.5,3068.4,0.002]
[1765757354984,5.9673947,3068.5,3068.4,0.002]
[1765757358911,6.3728987,3068.5,3068.4,0.002]
[1765757364088,6.3728987,3068.5,3068.1,1e-08]
[1765757364089,4.91537929,3068.4,3068.1,1e-08]
[1765757364282,4.91537929,3068.4,3067.0,0.002]
[1765757364283,1.47187929,3068.1,3067.0,0.002]
[1765757364484,7.31969957,3067.8,3067.0,0.002]
[1765757364694,35.71093157,3067.8,3067.0,0.002]
[1765757365009,0.879204,3067.4,3067.0,0.002]
[1765757365322,1.98367929,3067.4,3067.0,0.002]
[1765757365515,7.07790917,3067.4,3067.0,0.002]
[1765757365715,6.58050917,3067.4,3067.0,0.002]
[1765757365885,8.96139514,3067.4,3067.0,0.002]
[1765757366089,10.18450983,3067.4,3067.0,0.002]
[1765757366418,10.67680983,3067.4,3067.0,0.002]
[1765757366627,11.14690983,3067.4,3067.0,0.002]
[1765757367514,12.93156819,3067.4,3067.0,0.002]
[1765757367813,16.36356819,3067.4,3067.0,0.002]
[1765757368027,12.93156819,3067.4,3067.0,0.002]
[1765757368887,5.06367995,3067.4,3067.1,0.1752]
[1765757369085,6.07687995,3067.4,3067.1,0.002]
[1765757369291,12.94245791,3067.4,3067.1,0.002]
[1765757370305,16.37445791,3067.4,3067.1,0.002]
[1765757374435,0.179,3067.2,3067.0,0.002]
[1765757374606,12.20296971,3067.1,3067.0,0.002]
[1765757374808,11.23726571,3067.1,3067.0,0.002]
[1765757375003,11.72286571,3067.1,3067.0,0.002]
[1765757375331,17.2811293,3067.1,3067.0,0.002]
[1765757375733,9.3559473,3067.1,3067.0,0.002]
[1765757375931,8.6271473,3067.1,3067.0,0.002]
[1765757376558,11.88755615,3067.1,3067.0,0.002]
[1765757377831,40.38052815,3067.1,3067.0,0.002]
[1765757378033,29.02066315,3067.1,3067.0,0.002]
[1765757378236,15.28754615,3067.1,3067.0,0.002]
[1765757378835,10.38052815,3067.1,3067.0,0.002]
[1765757379025,6.46292815,3067.1,3067.0,0.002]
[1765757379227,6.98692815,3067.1,3067.0,0.002]
[1765757383553,7.47252815,3067.1,3067.0,0.002]
[1765757385541,5.56164373,3067.1,3067.0,0.4803]
[1765757385853,3.78440885,3067.1,3067.0,0.9459]
[1765757386409,4.36488414,3067.1,3067.0,0.9459]
[1765757386927,3.78440885,3067.1,3067.0,0.9459]
[1765757387115,4.36488414,3067.1,3067.0,0.9459]
[1765757388071,4.36588414,3067.1,3067.0,0.9459]
[1765757390050,4.36588414,3067.1,3067.0,0.4803]
[1765757390477,4.36588414,3067.1,3067.0,0.9459]
[1765757390667,4.36588414,3067.1,3067.0,0.4803]
[1765757390968,4.36588414,3067.1,3067.0,0.9459]
[1765757395643,4.36588414,3067.1,3067.0,0.4803]
[1765757395945,5.5890609,3067.1,3067.0,0.4803]
[1765757397373,4.36588414,3067.1,3067.0,0.4803]
[1765757397871,4.36588414,3067.1,3067.0,0.9454]
[1765757398066,4.36588414,3067.1,3067.0,0.4803]
[1765757398572,4.36588414,3067.1,3067.0,0.9454]
[1765757399487,4.36588414,3067.1,3067.0,0.4803]
[1765757399788,5.91509047,3067.1,3067.0,0.4803]
[1765757400697,7.26299447,3067.1,3067.0,0.002]
[1765757401492,5.39109047,3067.1,3067.0,0.9416]
[1765757401691,4.36588414,3067.1,3067.0,0.9416]
[1765757405387,3.26140885,3067.1,3067.0,0.9416]
[1765757405756,0.001,3067.1,3067.0,0.9416]
[1765757407285,0.001,3067.1,3067.0,1.36182333]
[1765757408369,0.001,3067.1,3067.0,4.60761916]
[1765757408685,0.001,3067.1,3067.0,9.78105942]
[1765757412864,0.001,3067.1,3067.0,1.52207529]
[1765757413068,0.001,3067.1,3067.0,0.9416]
[1765757413892,0.001,3067.1,3067.0,4.20211516]
[1765757414085,0.001,3067.1,3067.0,5.00068987]
[1765757415361,0.001,3067.1,3067.0,5.61377031]
[1765757415568,0.001,3067.1,3067.0,6.01927431]
[1765757415865,0.001,3067.1,3067.0,5.98666916]
[1765757416592,0.001,3067.1,3067.0,6.10416516]
[1765757416770,0.001,3067.1,3067.0,6.13677031]
[1765757416977,0.001,3067.1,3067.0,6.10416516]
[1765757417863,0.001,3067.1,3067.0,2.84365]
[1765757418071,0.001,3067.1,3067.0,5.30559045]
[1765757418790,0.001,3067.1,3067.0,5.7436996]
[1765757418996,0.001,3067.1,3067.0,5.71109445]
[1765757420385,0.001,3067.1,3067.0,5.7436996]
[1765757420774,0.001,3067.1,3067.0,6.23397974]
[1765757420971,0.001,3067.1,3067.0,9.86744089]
[1765757421196,0.001,3067.1,3067.0,9.3445556]
[1765757422199,0.001,3067.1,3067.0,8.8215556]
[1765757422392,0.001,3067.1,3067.0,9.3445556]
[1765757427810,0.001,3067.1,3067.0,8.8215556]
[1765757428018,0.001,3067.1,3067.0,9.3445556]
[1765757429079,0.001,3067.1,3067.0,8.8215556]
[1765757429389,0.001,3067.1,3067.0,5.15553644]
[1765757429595,0.001,3067.1,3067.0,5.69603644]
[1765757430094,0.001,3067.1,3067.0,8.9565516]
[1765757431515,0.001,3067.1,3067.0,2.7765]
[1765757431703,0.4592,3067.1,3067.0,0.002]
[1765757432308,0.001,3067.1,3067.0,0.4555]
[1765757432613,0.001,3067.1,3067.0,0.9381]
[1765757433621,0.001,3067.1,3067.0,5.30209045]
[1765757433917,0.001,3067.1,3067.0,6.16162328]
[1765757434609,0.001,3067.1,3067.0,2.90110812]
[1765757435117,0.001,3067.1,3067.0,6.16162328]
[1765757438195,0.001,3067.1,3067.0,6.56712728]
[1765757438708,0.001,3067.1,3067.0,7.05740742]
[1765757438891,0.001,3067.1,3067.0,6.56712728]
[1765757439523,0.001,3067.1,3067.0,8.86712728]
[1765757439827,0.001,3067.1,3067.0,9.84561522]
[1765757440221,0.001,3067.1,3067.0,10.33589536]
[1765757440396,0.001,3067.1,3067.0,9.84561522]
[1765757442121,0.001,3067.1,3067.0,10.804986]
[1765757442292,0.001,3067.1,3067.0,10.33589536]
[1765757442496,0.001,3067.1,3067.0,9.32261522]
[1765757442726,0.001,3067.1,3067.0,9.84561522]
[1765757444598,0.001,3067.1,3067.0,13.68561522]
[1765757445310,0.001,3067.1,3067.0,24.74355036]
[1765757445529,0.001,3067.1,3067.0,32.16504268]
[1765757445841,0.001,3067.1,3067.0,31.71717836]
[1765757446547,0.001,3067.1,3067.0,32.15439136]
[1765757447199,0.001,3067.1,3067.0,25.66175822]
[1765757447594,0.001,3067.1,3067.0,13.68561522]
[1765757447790,0.001,3067.1,3067.0,26.30918922]
[1765757448237,0.001,3067.1,3067.0,13.68461522]
[1765757448417,0.001,3067.1,3067.0,15.67142236]
[1765757448624,0.001,3067.1,3067.0,11.69403593]
[1765757448798,0.001,3067.1,3067.0,2.7555]
[1765757449006,0.4592,3067.1,3067.0,3.78451516]
[1765757449209,0.001,3067.1,3067.0,4.23801516]
[1765757449408,0.001,3067.1,3067.0,5.47048843]
[1765757449630,0.001,3067.1,3067.0,6.48907287]
[1765757449927,0.001,3067.1,3067.0,6.45646772]
[1765757450527,0.001,3067.1,3067.0,5.93446772]
[1765757450711,0.001,3067.1,3067.0,8.17599243]
[1765757450910,0.001,3067.1,3067.0,8.75646772]
[1765757451527,0.001,3067.1,3067.0,7.86836372]
[1765757452020,0.001,3067.1,3067.0,8.27386772]
[1765757452419,0.001,3067.1,3067.0,5.01335256]
[1765757452621,0.001,3067.1,3067.0,7.52399445]
[1765757452949,0.4592,3067.1,3067.0,6.66499045]
[1765757453435,0.4592,3067.1,3067.0,2.302]
[1765757453615,0.4592,3067.1,3067.0,2.824]
[1765757453815,0.928,3067.1,3067.0,2.302]
[1765757454141,0.4592,3067.1,3067.0,2.824]
[1765757454636,0.4592,3067.1,3067.0,3.16487529]
[1765757454838,0.4592,3067.1,3067.0,3.40447529]
[1765757454839,0.928,3067.1,3067.0,3.40447529]
[1765757455531,0.001,3067.1,3067.0,6.66499045]
[1765757455737,0.001,3067.1,3067.0,7.11849045]
[1765757455939,0.001,3067.1,3067.0,6.66499045]
[1765757456232,0.4592,3067.1,3067.0,3.40447529]
[1765757456410,0.928,3067.1,3067.0,3.40447529]
[1765757456620,0.928,3067.1,3067.0,2.88247529]
[1765757456819,0.928,3067.1,3067.0,1.10447529]
[1765757457027,0.928,3067.1,3067.0,0.58247529]
[1765757457337,0.928,3067.1,3067.0,1.10447529]
[1765757459441,0.928,3067.1,3067.0,0.524]
[1765757460115,4.607242,3067.1,3067.0,0.002]
[1765757460316,1.34683315,3067.1,3067.0,0.002]
[1765757460737,4.607242,3067.1,3067.0,0.002]
[1765757461314,1.34683315,3067.1,3067.0,0.002]
[1765757461908,4.607242,3067.1,3067.0,0.002]
[1765757463656,5.18771729,3067.1,3067.0,0.002]
[1765757467036,16.57310329,3067.1,3067.0,0.002]
[1765757467361,12.28745329,3067.1,3067.0,0.002]
[1765757469057,5.59322129,3067.1,3067.0,0.002]
[1765757469573,5.59322129,3067.1,3066.1,0.002]
[1765757469574,0.98597929,3067.0,3066.1,0.002]
[1765757469733,0.43518138,3066.2,3066.1,0.002]
[1765757470138,0.89168138,3066.2,3066.1,0.002]
[1765757471066,4.73352253,3066.2,3066.1,0.002]
[1765757475466,9.33392952,3066.2,3066.1,0.002]
[1765757475767,11.51216998,3066.2,3066.1,0.002]
[1765757476936,11.51216998,3066.2,3065.7,0.002]
[1765757476937,9.20081398,3065.8,3065.7,0.002]
[1765757477237,10.36501798,3065.8,3065.7,0.002]
[1765757477581,25.48320383,3065.8,3065.7,0.002]
[1765757477865,25.48320383,3065.8,3064.8,0.002]
[1765757477866,5.98360017,3065.0,3064.8,0.002]
[1765757478072,1.17718553,3064.9,3064.8,0.002]
[1765757478254,1.63368553,3064.9,3064.8,0.002]
[1765757478434,0.2301,3064.6,3063.9,0.1133]
[1765757478854,0.00978824,3064.2,3063.7,0.4916]
[1765757479066,0.00978824,3064.2,3063.6,0.002]
[1765757479362,0.4572,3063.7,3063.6,0.002]
[1765757479565,3.72122715,3063.7,3063.6,0.002]
[1765757479751,4.17772715,3063.7,3063.6,0.002]
[1765757479946,4.56959358,3063.7,3063.6,0.002]
[1765757480739,4.11309358,3063.7,3063.6,0.002]
[1765757480939,3.26402715,3063.7,3063.6,0.002]
[1765757481563,0.00979128,3063.8,3063.6,0.002]
[1765757481564,0.00979128,3063.8,3063.6,0.9846]
[1765757481741,0.00979128,3063.8,3063.7,0.491]
[1765757481742,3.2737119,3063.8,3063.7,0.491]
[1765757482346,3.2737119,3063.8,3063.6,0.002]
[1765757482347,4.1874119,3063.8,3063.6,0.002]
[1765757482549,0.7271,3063.7,3063.6,0.002]
[1765757482840,1.47290171,3063.7,3063.6,0.002]
[1765757483038,1.47290171,3063.7,3062.0,0.1573]
[1765757483039,2.053377,3063.7,3062.0,0.1573]
[1765757483239,0.58047529,3063.4,3062.1,0.4916]
[1765757483439,9.79336008,3063.3,3062.1,0.4916]
[1765757483663,9.79336008,3063.3,3062.0,0.1573]